fUSD/lending_fUSD_20240416
["ID","MTS","AMOUNT","RATE_DAILY","PERIOD"]
[322774168,1713276643927,-500.0,0.00016996,2]
[322774169,1713276643936,-500.0,0.00016996,2]
[322774170,1713276643946,-500.0,0.00016996,2]
[322774171,1713276643956,-500.0,0.00016996,2]
[322774172,1713276643966,-500.0,0.00016996,2]
[322774173,1713276643975,-500.0,0.00016996,2]
[322774174,1713276643985,-500.0,0.00016996,2]
[322774175,1713276643994,-500.0,0.00016996,2]
[322774176,1713276644004,-500.0,0.00016996,2]
[322774177,1713276644013,-500.0,0.00016996,2]
[322774178,1713276644023,-177.37675834,0.00016996,2]
[322774179,1713276644033,-3836.03,0.00016996,2]
[322774180,1713276644042,-3836.03,0.00016996,2]
[322774181,1713276644052,-3836.03,0.00016996,2]
[322774182,1713276644061,-318.13458836,0.00016996,2]
[322774183,1713276644071,-3836.03,0.00016996,2]
[322774184,1713276644081,-3836.03,0.00016996,2]
[322774185,1713276644091,-3836.03,0.00016996,2]
[322774186,1713276644100,-500.0,0.00016996,2]
[322774187,1713276644110,-3836.03,0.00016996,2]
[322774188,1713276644119,-500.0,0.00016996,2]
[322774189,1713276644135,-199.29,0.00016996,2]
[322774190,1713276644145,-500.0,0.00016996,2]
[322774191,1713276644155,-3836.03,0.00016996,2]
[322774192,1713276644165,-3599.42,0.00016996,2]
[322774193,1713276644174,-500.0,0.00016996,2]
[322774194,1713276644184,-3836.03,0.00016996,2]
[322774195,1713276644193,-3599.42,0.00016996,2]
[322774196,1713276644203,-500.0,0.00016996,2]
[322774197,1713276644214,-3599.42,0.00016996,2]
[322774198,1713276644223,-500.0,0.00016996,2]
[322774199,1713276644232,-500.0,0.00016996,2]
[322774200,1713276644242,-3599.42,0.00016996,2]
[322774201,1713276644251,-3836.03,0.00016996,2]
[322774202,1713276644261,-356.55929252,0.00016996,2]
[322774203,1713276644270,-500.0,0.00016996,2]
[322774204,1713276644280,-3599.42,0.00016996,2]
[322774205,1713276644289,-500.0,0.00016996,2]
[322774206,1713276644298,-3599.42,0.00016996,2]
[322774207,1713276644307,-500.0,0.00016996,2]
[322774208,1713276644316,-3599.42,0.00016996,2]
[322774209,1713276644325,-3599.42,0.00016996,2]
[322774210,1713276644334,-3599.42,0.00016996,2]
[322774211,1713276644344,-3599.42,0.00016996,2]
[322774212,1713276644353,-26.04019728,0.00016996,2]
[322774213,1713276644368,-175.60243847,0.00016996,2]
[322774214,1713276644381,-500.0,0.00016996,2]
[322774215,1713276644445,-262.35602113,0.00016996,2]
[322774224,1713276664090,-325.1784174,0.00016995,2]
[322774225,1713276664104,-262.9015826,0.00016995,2]
[322774226,1713276664115,-6.45586208,0.00016995,2]
[322774227,1713276664128,-462.65805093,0.00016995,2]
[322774228,1713276664146,-118.96608699,0.00016995,2]
[322774229,1713276664157,-237.64397887,0.00016996,2]
[322774230,1713276664168,-500.0,0.00016996,2]
[322774231,1713276664178,-500.0,0.00016996,2]
[322774232,1713276664189,-174.813838,0.00016996,2]
[322774233,1713276664200,-500.0,0.00016996,2]
[322774234,1713276664211,-565.61,0.00016996,2]
[322774235,1713276664223,-321.12109619,0.00016996,2]
[322774236,1713276664237,-178.87890381,0.00016996,2]
[322774237,1713276664248,-565.61,0.00016996,2]
[322774238,1713276664259,-565.61,0.00016996,2]
[322774239,1713276664270,-500.0,0.00016996,2]
[322774240,1713276664281,-500.0,0.00016996,2]
[322774241,1713276664291,-293.74686195,0.00016996,2]
[322774242,1713276664314,-206.25313805,0.00016996,2]
[322774243,1713276664324,-62.3573387,0.00016996,2]
[322774244,1713276664337,-322.87653265,0.00016996,2]
[322774245,1713276664350,-71.28612865,0.00016996,2]
[322774246,1713276664361,-1542.97245929,0.00016996,2]
[322774247,1713276664374,-673.67791118,0.00016996,2]
[322774248,1713276664391,-1989.40962953,0.00016996,2]
[322774249,1713276664401,-565.61,0.00016996,2]
[322774250,1713276664412,-500.0,0.00016996,2]
[322774251,1713276664423,-3459.45266348,0.00016996,2]
[322774252,1713276664633,-1517.296143,0.00016908,2]
[322774253,1713276664644,-515.26389216,0.00016994,2]
[322774254,1713276664654,-746.60733652,0.00016996,2]
[322774255,1713276664665,-26.36026786,0.00016996,2]
[322774256,1713276664678,-146.90924399,0.00016996,2]
[322774257,1713276664688,-348.62551584,0.00016996,2]
[322774258,1713276664878,-3857.43448416,0.00016996,2]
[322774259,1713276664892,-3463.62028378,0.00016996,2]
[322774260,1713276664905,-742.43971622,0.00016996,2]
[322774261,1713276664916,-385.52673446,0.00016996,2]
[322774262,1713276664926,-2915.27047823,0.00016996,2]
[322774263,1713276664950,-653.82406343,0.00016996,2]
[322774265,1713276666003,-314.31237,0.00016996,2]
[322774266,1713277114830,-162.84379118,0.00015896,2]
[322774267,1713277114849,-11961.00556966,0.00015995,2]
[322774268,1713277114869,-227.6,0.00015996,2]
[322774269,1713277114887,-1202.16,0.00016113,2]
[322774270,1713277114908,-200.0,0.0001613,2]
[322774271,1713277114929,-1040.833963,0.00016147,2]
[322774272,1713277114949,-1205.55667616,0.00016166,2]
[322774273,1713277137404,539.04,0.00014227,2]
[322774275,1713277629885,512.08,0.00014058,2]
[322774331,1713277832468,-376.48214074,0.0001595,2]
[322774332,1713277832477,-227.6,0.00015951,2]
[322774333,1713277832487,-247.91783926,0.00015963,2]
[322774340,1713277838081,-529.12011047,0.00015963,2]
[322774341,1713277838093,-600.5,0.00015963,2]
[322774342,1713277838104,-579.69400002,0.00015963,2]
[322774343,1713277838116,-458.84805025,0.00015963,2]
[322774344,1713277838125,-32.11102775,0.00015963,2]
[322774345,1713277838168,-384.2290936,0.00015963,2]
[322774375,1713277840809,-1129.09987865,0.00015963,2]
[322774376,1713277840819,-1000.0,0.00015976,2]
[322774377,1713277840829,-158.86,0.00015989,2]
[322774378,1713277840839,-158.86,0.00015997,2]
[322774379,1713277840848,-190.45,0.00016006,2]
[322774380,1713277840859,-230.13,0.00016021,2]
[322774381,1713277840869,-196.36,0.0001607,2]
[322774382,1713277840879,-150.0,0.00016164,2]
[322774383,1713277840889,-12524.79467225,0.00016165,2]
[322774384,1713277840900,-166.79,0.000162,2]
[322774385,1713277840909,-512.08,0.00016322,2]
[322774386,1713277840919,-15805.12000005,0.0001683,2]
[322774387,1713277840928,-832.04704,0.0001683,2]
[322774388,1713277840937,-1143.56763187,0.00016893,2]
[322774389,1713277840947,-5968.485,0.00016894,2]
[322774390,1713277840955,-1325.3827,0.00016894,2]
[322774391,1713277840969,-585.37101104,0.00016895,2]
[322774392,1713277840980,-1000.0,0.00016896,2]
[322774393,1713277840991,-1503.6819,0.00016896,2]
[322774394,1713277841002,-300.0,0.00016896,2]
[322774395,1713277841011,-499.99,0.00016896,2]
[322774396,1713277841022,-1523.41358251,0.00016896,2]
[322774397,1713277841031,-318.20500024,0.000169,2]
[322774398,1713277841044,-216.11499976,0.000169,2]
[322774399,1713277841055,-418.54,0.000169,2]
[322774400,1713277841065,-165.04879,0.00016986,2]
[322774401,1713277841075,-189.58729183,0.00016992,2]
[322774402,1713277841085,-2034.52122238,0.00016992,2]
[322774403,1713277841121,-280.24556858,0.00016992,2]
[322774404,1713277841130,-155.0,0.00016992,2]
[322774405,1713277841139,-1598.34,0.00016992,2]
[322774406,1713277841149,-500.0,0.00016992,2]
[322774407,1713277841158,-500.0,0.00016992,2]
[322774408,1713277841167,-795.23,0.00016992,2]
[322774409,1713277841177,-500.0,0.00016992,2]
[322774410,1713277841186,-2642.23,0.00016992,2]
[322774411,1713277841195,-561.38,0.00016992,2]
[322774412,1713277841204,-500.0,0.00016992,2]
[322774413,1713277841216,-500.0,0.00016992,2]
[322774414,1713277841226,-500.0,0.00016992,2]
[322774415,1713277841235,-500.0,0.00016992,2]
[322774416,1713277841245,-1903.21,0.00016992,2]
[322774417,1713277841254,-500.0,0.00016992,2]
[322774418,1713277841264,-1031.6,0.00016992,2]
[322774419,1713277841274,-1488.51,0.00016992,2]
[322774420,1713277841284,-1461.86,0.00016992,2]
[322774421,1713277841294,-500.0,0.00016992,2]
[322774422,1713277841304,-500.0,0.00016992,2]
[322774423,1713277841313,-500.0,0.00016992,2]
[322774424,1713277841322,-4416.76,0.00016992,2]
[322774425,1713277841332,-500.0,0.00016992,2]
[322774426,1713277841342,-500.0,0.00016992,2]
[322774427,1713277841352,-529.0,0.00016992,2]
[322774428,1713277841362,-529.0,0.00016992,2]
[322774429,1713277841371,-1831.18,0.00016992,2]
[322774430,1713277841381,-500.0,0.00016992,2]
[322774431,1713277841390,-500.0,0.00016992,2]
[322774432,1713277841400,-579.46,0.00016992,2]
[322774433,1713277841409,-500.0,0.00016992,2]
[322774434,1713277841418,-500.0,0.00016992,2]
[322774435,1713277841427,-500.0,0.00016992,2]
[322774436,1713277841436,-500.0,0.00016992,2]
[322774437,1713277841446,-500.0,0.00016992,2]
[322774438,1713277841455,-1243.69,0.00016992,2]
[322774439,1713277841466,-500.0,0.00016992,2]
[322774440,1713277841476,-1243.69,0.00016992,2]
[322774441,1713277841485,-550.45,0.00016992,2]
[322774442,1713277841495,-550.45,0.00016992,2]
[322774443,1713277841505,-500.0,0.00016992,2]
[322774444,1713277841515,-500.0,0.00016992,2]
[322774445,1713277841524,-500.0,0.00016992,2]
[322774446,1713277841534,-500.0,0.00016992,2]
[322774447,1713277841543,-500.0,0.00016992,2]
[322774448,1713277841552,-500.0,0.00016992,2]
[322774449,1713277841561,-756.57,0.00016992,2]
[322774450,1713277841570,-500.0,0.00016992,2]
[322774451,1713277841579,-756.57,0.00016992,2]
[322774452,1713277841589,-500.0,0.00016992,2]
[322774453,1713277841599,-500.0,0.00016992,2]
[322774454,1713277841609,-500.0,0.00016992,2]
[322774455,1713277841618,-500.0,0.00016992,2]
[322774456,1713277841627,-561.03,0.00016992,2]
[322774457,1713277841636,-561.03,0.00016992,2]
[322774458,1713277841646,-865.08,0.00016992,2]
[322774459,1713277841656,-500.0,0.00016992,2]
[322774460,1713277841666,-500.0,0.00016992,2]
[322774461,1713277841678,-500.0,0.00016992,2]
[322774462,1713277841687,-964.12,0.00016992,2]
[322774463,1713277841697,-964.12,0.00016992,2]
[322774464,1713277841707,-500.0,0.00016992,2]
[322774465,1713277841719,-500.0,0.00016992,2]
[322774466,1713277841729,-500.0,0.00016992,2]
[322774467,1713277841739,-1155.99,0.00016992,2]
[322774468,1713277841749,-4500.16,0.00016992,2]
[322774469,1713277841759,-500.0,0.00016992,2]
[322774470,1713277841770,-500.0,0.00016992,2]
[322774471,1713277841780,-500.0,0.00016992,2]
[322774472,1713277841791,-591.72,0.00016992,2]
[322774473,1713277841801,-591.72,0.00016992,2]
[322774474,1713277841814,-500.0,0.00016992,2]
[322774475,1713277841824,-239.29762182,0.00016992,2]
[322774476,1713277841833,-4093.4,0.00016992,2]
[322774477,1713277841845,-500.0,0.00016992,2]
[322774478,1713277841856,-500.0,0.00016992,2]
[322774479,1713277841866,-23979.86,0.00016992,2]
[322774480,1713277841875,-23979.86,0.00016992,2]
[322774481,1713277842094,-1916.48,0.00016992,2]
[322774482,1713277842103,-2802.32,0.00016992,2]
[322774483,1713277842112,-2802.32,0.00016992,2]
[322774484,1713277842122,-500.0,0.00016992,2]
[322774485,1713277842131,-500.0,0.00016992,2]
[322774486,1713277842142,-525.44346404,0.00016992,2]
[322774487,1713277842151,-500.0,0.00016992,2]
[322774488,1713277842410,-500.0,0.00016992,2]
[322774489,1713277842419,-4593.65,0.00016992,2]
[322774490,1713277842429,-4593.65,0.00016992,2]
[322774491,1713277842438,-380.46579519,0.00016992,2]
[322774492,1713277842447,-500.0,0.00016992,2]
[322774493,1713277842456,-500.0,0.00016992,2]
[322774494,1713277842466,-1499.75,0.00016992,2]
[322774495,1713277842475,-1499.75,0.00016992,2]
[322774496,1713277842484,-500.0,0.00016992,2]
[322774497,1713277842493,-500.0,0.00016992,2]
[322774498,1713277842503,-500.0,0.00016992,2]
[322774499,1713277842512,-500.0,0.00016992,2]
[322774500,1713277842520,-500.0,0.00016992,2]
[322774501,1713277842529,-500.0,0.00016992,2]
[322774502,1713277842538,-500.0,0.00016992,2]
[322774503,1713277842547,-500.0,0.00016993,2]
[322774504,1713277842555,-240.63490791,0.00016993,2]
[322774505,1713277842564,-500.0,0.00016993,2]
[322774506,1713277842573,-500.0,0.00016993,2]
[322774507,1713277842583,-500.0,0.00016993,2]
[322774508,1713277842592,-500.0,0.00016993,2]
[322774509,1713277842601,-500.0,0.00016993,2]
[322774510,1713277842610,-500.0,0.00016993,2]
[322774511,1713277842619,-500.0,0.00016993,2]
[322774512,1713277842629,-588.1928403,0.00016993,2]
[322774513,1713277842639,-500.0,0.00016993,2]
[322774514,1713277842650,-500.0,0.00016993,2]
[322774515,1713277842659,-500.0,0.00016993,2]
[322774517,1713277842668,-500.0,0.00016993,2]
[322774519,1713277842677,-500.0,0.00016993,2]
[322774521,1713277842685,-685.53,0.00016993,2]
[322774522,1713277842694,-500.0,0.00016993,2]
[322774524,1713277842704,-194.84543523,0.00016993,2]
[322774526,1713277842713,-500.0,0.00016993,2]
[322774528,1713277842726,-500.0,0.00016993,2]
[322774530,1713277842735,-500.0,0.00016993,2]
[322774532,1713277842744,-914.13,0.00016993,2]
[322774534,1713277842753,-440.61349327,0.00016993,2]
[322774536,1713277842762,-500.0,0.00016993,2]
[322774538,1713277842771,-500.0,0.00016993,2]
[322774540,1713277842781,-500.0,0.00016993,2]
[322774542,1713277842790,-500.0,0.00016993,2]
[322774544,1713277842800,-150.0,0.00016993,2]
[322774546,1713277842812,-500.0,0.00016993,2]
[322774548,1713277842821,-500.0,0.00016993,2]
[322774551,1713277842832,-500.0,0.00016993,2]
[322774552,1713277842843,-500.0,0.00016993,2]
[322774554,1713277842851,-500.0,0.00016993,2]
[322774556,1713277842860,-500.0,0.00016993,2]
[322774558,1713277842869,-500.0,0.00016993,2]
[322774560,1713277842878,-500.0,0.00016993,2]
[322774563,1713277842888,-500.0,0.00016993,2]
[322774566,1713277842897,-500.0,0.00016993,2]
[322774569,1713277842907,-500.0,0.00016993,2]
[322774572,1713277842916,-500.0,0.00016993,2]
[322774575,1713277842925,-500.0,0.00016993,2]
[322774578,1713277842934,-500.0,0.00016993,2]
[322774581,1713277842943,-500.0,0.00016993,2]
[322774584,1713277842952,-500.0,0.00016993,2]
[322774586,1713277842961,-500.0,0.00016993,2]
[322774589,1713277842978,-500.0,0.00016993,2]
[322774593,1713277842988,-500.0,0.00016993,2]
[322774598,1713277842998,-500.0,0.00016993,2]
[322774602,1713277843007,-500.0,0.00016993,2]
[322774604,1713277843016,-500.0,0.00016993,2]
[322774607,1713277843025,-500.0,0.00016993,2]
[322774610,1713277843034,-500.0,0.00016993,2]
[322774612,1713277843043,-500.0,0.00016993,2]
[322774614,1713277843052,-500.0,0.00016993,2]
[322774616,1713277843060,-500.0,0.00016993,2]
[322774618,1713277843070,-500.0,0.00016993,2]
[322774620,1713277843079,-628.45,0.00016993,2]
[322774622,1713277843088,-500.0,0.00016993,2]
[322774624,1713277843097,-500.0,0.00016993,2]
[322774626,1713277843106,-500.0,0.00016993,2]
[322774628,1713277843115,-500.0,0.00016993,2]
[322774629,1713277843124,-500.0,0.00016993,2]
[322774630,1713277843133,-500.0,0.00016993,2]
[322774631,1713277843142,-500.0,0.00016993,2]
[322774632,1713277843151,-530.14746828,0.00016993,2]
[322774633,1713277843159,-500.0,0.00016993,2]
[322774634,1713277843168,-500.0,0.00016993,2]
[322774635,1713277843177,-500.0,0.00016993,2]
[322774636,1713277843186,-500.0,0.00016993,2]
[322774637,1713277843194,-500.0,0.00016993,2]
[322774638,1713277843203,-500.0,0.00016993,2]
[322774639,1713277843212,-500.0,0.00016993,2]
[322774640,1713277843224,-500.0,0.00016993,2]
[322774641,1713277843234,-500.0,0.00016993,2]
[322774642,1713277843242,-500.0,0.00016993,2]
[322774643,1713277843251,-500.0,0.00016993,2]
[322774644,1713277843261,-500.0,0.00016993,2]
[322774645,1713277843270,-500.0,0.00016993,2]
[322774646,1713277843279,-500.0,0.00016993,2]
[322774647,1713277843289,-348.70966241,0.00016993,2]
[322774648,1713277843298,-500.0,0.00016993,2]
[322774649,1713277843308,-500.0,0.00016993,2]
[322774650,1713277843317,-500.0,0.00016993,2]
[322774651,1713277843327,-500.0,0.00016993,2]
[322774652,1713277843336,-500.0,0.00016993,2]
[322774653,1713277843345,-500.0,0.00016993,2]
[322774654,1713277843354,-500.0,0.00016993,2]
[322774655,1713277843362,-500.0,0.00016993,2]
[322774656,1713277843372,-434.5113746,0.00016993,2]
[322774657,1713277843381,-500.0,0.00016993,2]
[322774658,1713277843390,-500.0,0.00016993,2]
[322774659,1713277843400,-500.0,0.00016993,2]
[322774660,1713277843409,-500.0,0.00016993,2]
[322774661,1713277843418,-500.0,0.00016993,2]
[322774662,1713277843427,-500.0,0.00016993,2]
[322774663,1713277843436,-500.0,0.00016993,2]
[322774664,1713277843445,-500.0,0.00016993,2]
[322774665,1713277843454,-500.0,0.00016993,2]
[322774666,1713277843466,-756.14,0.00016993,2]
[322774667,1713277843477,-756.14,0.00016993,2]
[322774668,1713277843486,-285.40502275,0.00016993,2]
[322774669,1713277843496,-500.0,0.00016993,2]
[322774670,1713277843506,-559.32,0.00016993,2]
[322774671,1713277843515,-500.0,0.00016993,2]
[322774672,1713277843524,-500.0,0.00016993,2]
[322774673,1713277843534,-1442.81,0.00016993,2]
[322774674,1713277843543,-500.0,0.00016993,2]
[322774675,1713277843553,-500.0,0.00016993,2]
[322774676,1713277843562,-500.0,0.00016993,2]
[322774677,1713277843571,-500.0,0.00016993,2]
[322774678,1713277843581,-500.0,0.00016993,2]
[322774679,1713277843590,-500.0,0.00016993,2]
[322774680,1713277843599,-593.58,0.00016993,2]
[322774681,1713277843608,-593.58,0.00016993,2]
[322774683,1713277843617,-1223.78,0.00016993,2]
[322774685,1713277843627,-473.45,0.00016993,2]
[322774687,1713277843636,-274.03,0.00016993,2]
[322774689,1713277843645,-500.0,0.00016993,2]
[322774691,1713277843654,-500.0,0.00016993,2]
[322774692,1713277843663,-500.0,0.00016993,2]
[322774693,1713277843672,-500.0,0.00016993,2]
[322774694,1713277843681,-500.0,0.00016993,2]
[322774695,1713277843690,-500.0,0.00016993,2]
[322774696,1713277843699,-404.31693768,0.00016993,2]
[322774697,1713277843709,-372.75528754,0.00016993,2]
[322774698,1713277843723,-500.0,0.00016993,2]
[322774699,1713277843733,-2070.57,0.00016993,2]
[322774700,1713277843742,-500.0,0.00016993,2]
[322774701,1713277843751,-439.74351593,0.00016993,2]
[322774702,1713277843761,-367.23,0.00016993,2]
[322774703,1713277843770,-500.0,0.00016993,2]
[322774704,1713277843779,-500.0,0.00016993,2]
[322774705,1713277843788,-771.19,0.00016993,2]
[322774706,1713277843798,-500.0,0.00016993,2]
[322774707,1713277843809,-264.23787672,0.00016993,2]
[322774708,1713277843818,-500.0,0.00016993,2]
[322774709,1713277843828,-500.0,0.00016993,2]
[322774710,1713277843837,-500.0,0.00016993,2]
[322774711,1713277843847,-500.0,0.00016993,2]
[322774712,1713277843856,-500.0,0.00016993,2]
[322774713,1713277843866,-500.0,0.00016993,2]
[322774714,1713277843875,-500.0,0.00016993,2]
[322774715,1713277843885,-500.0,0.00016993,2]
[322774716,1713277843895,-500.0,0.00016993,2]
[322774717,1713277843904,-500.0,0.00016993,2]
[322774718,1713277843913,-500.0,0.00016993,2]
[322774719,1713277843923,-500.0,0.00016993,2]
[322774720,1713277843934,-500.0,0.00016993,2]
[322774721,1713277843943,-500.0,0.00016993,2]
[322774722,1713277843953,-500.0,0.00016993,2]
[322774723,1713277843962,-501.73654708,0.00016993,2]
[322774724,1713277843975,-576.88,0.00016993,2]
[322774725,1713277843985,-576.88,0.00016993,2]
[322774726,1713277843994,-500.0,0.00016993,2]
[322774727,1713277844003,-500.0,0.00016993,2]
[322774728,1713277844012,-500.0,0.00016993,2]
[322774729,1713277844022,-500.0,0.00016993,2]
[322774730,1713277844031,-500.0,0.00016993,2]
[322774731,1713277844040,-500.0,0.00016993,2]
[322774732,1713277844049,-500.0,0.00016993,2]
[322774733,1713277844059,-500.0,0.00016993,2]
[322774734,1713277844068,-500.0,0.00016993,2]
[322774735,1713277844078,-500.0,0.00016993,2]
[322774736,1713277844087,-1395.79,0.00016993,2]
[322774737,1713277844097,-1395.79,0.00016993,2]
[322774738,1713277844106,-500.0,0.00016993,2]
[322774739,1713277844115,-500.0,0.00016993,2]
[322774740,1713277844124,-500.0,0.00016993,2]
[322774741,1713277844133,-505.99034416,0.00016993,2]
[322774742,1713277844143,-249.59736546,0.00016993,2]
[322774743,1713277844154,-500.0,0.00016993,2]
[322774744,1713277844173,-601.38244707,0.00016993,2]
[322774745,1713277844182,-361.40786662,0.00016993,2]
[322774746,1713277844191,-500.0,0.00016993,2]
[322774747,1713277844201,-500.0,0.00016993,2]
[322774748,1713277844210,-500.0,0.00016993,2]
[322774749,1713277844221,-514.47230248,0.00016993,2]
[322774750,1713277844231,-500.0,0.00016993,2]
[322774751,1713277844241,-500.0,0.00016993,2]
[322774752,1713277844251,-500.0,0.00016993,2]
[322774753,1713277844271,-500.0,0.00016993,2]
[322774754,1713277844280,-500.0,0.00016993,2]
[322774755,1713277844290,-500.0,0.00016993,2]
[322774756,1713277844299,-500.0,0.00016993,2]
[322774757,1713277844308,-500.0,0.00016993,2]
[322774758,1713277844317,-500.0,0.00016993,2]
[322774759,1713277844327,-262.22175607,0.00016993,2]
[322774760,1713277844336,-235.44870569,0.00016993,2]
[322774761,1713277844345,-500.0,0.00016993,2]
[322774762,1713277844354,-500.0,0.00016993,2]
[322774763,1713277844364,-552.78908776,0.00016993,2]
[322774764,1713277844374,-500.0,0.00016993,2]
[322774765,1713277844383,-264.62952838,0.00016993,2]
[322774766,1713277844392,-500.0,0.00016993,2]
[322774767,1713277844401,-4690.96,0.00016993,2]
[322774768,1713277844410,-500.0,0.00016993,2]
[322774769,1713277844419,-500.0,0.00016993,2]
[322774770,1713277844429,-641.21686564,0.00016993,2]
[322774771,1713277844438,-500.0,0.00016993,2]
[322774772,1713277844446,-500.0,0.00016993,2]
[322774773,1713277844455,-500.0,0.00016993,2]
[322774774,1713277844464,-500.0,0.00016993,2]
[322774775,1713277844476,-500.0,0.00016993,2]
[322774776,1713277844486,-500.0,0.00016993,2]
[322774777,1713277844495,-500.0,0.00016993,2]
[322774778,1713277844504,-500.0,0.00016993,2]
[322774779,1713277844513,-500.0,0.00016993,2]
[322774780,1713277844522,-500.0,0.00016993,2]
[322774781,1713277844531,-202.7,0.00016993,2]
[322774782,1713277844541,-498.73,0.00016993,2]
[322774783,1713277844549,-500.0,0.00016993,2]
[322774784,1713277844559,-500.0,0.00016993,2]
[322774785,1713277844568,-500.0,0.00016993,2]
[322774786,1713277844577,-500.0,0.00016993,2]
[322774787,1713277844586,-520.48,0.00016993,2]
[322774788,1713277844595,-520.48,0.00016993,2]
[322774789,1713277844604,-500.0,0.00016993,2]
[322774790,1713277844613,-500.0,0.00016993,2]
[322774791,1713277844622,-323.27134713,0.00016993,2]
[322774792,1713277844631,-500.0,0.00016993,2]
[322774793,1713277844641,-500.0,0.00016993,2]
[322774794,1713277844650,-500.0,0.00016993,2]
[322774795,1713277844659,-500.0,0.00016993,2]
[322774796,1713277844668,-500.0,0.00016993,2]
[322774797,1713277844678,-500.0,0.00016993,2]
[322774798,1713277844686,-523.3,0.00016993,2]
[322774799,1713277844696,-523.3,0.00016993,2]
[322774800,1713277844706,-500.0,0.00016993,2]
[322774801,1713277844728,-485.56699609,0.00016993,2]
[322774802,1713277844738,-226.15793506,0.00016993,2]
[322774803,1713277844748,-500.0,0.00016993,2]
[322774804,1713277844757,-500.0,0.00016993,2]
[322774805,1713277844766,-500.0,0.00016993,2]
[322774806,1713277844776,-500.0,0.00016993,2]
[322774807,1713277844785,-500.0,0.00016993,2]
[322774808,1713277844795,-500.0,0.00016993,2]
[322774809,1713277844807,-501.03813894,0.00016993,2]
[322774810,1713277844816,-623.45,0.00016993,2]
[322774811,1713277844826,-500.618196,0.00016993,2]
[322774812,1713277844835,-458.21693167,0.00016993,2]
[322774813,1713277844844,-379.34961106,0.00016993,2]
[322774814,1713277844854,-612.65,0.00016993,2]
[322774815,1713277844864,-612.65,0.00016993,2]
[322774816,1713277844873,-320.9502496,0.00016993,2]
[322774817,1713277844885,-500.0,0.00016993,2]
[322774818,1713277844895,-500.0,0.00016993,2]
[322774819,1713277844904,-500.0,0.00016993,2]
[322774820,1713277844913,-318.91612717,0.00016993,2]
[322774821,1713277844922,-500.0,0.00016993,2]
[322774822,1713277844931,-495.58608642,0.00016993,2]
[322774823,1713277844941,-935.03,0.00016993,2]
[322774824,1713277844950,-935.03,0.00016993,2]
[322774825,1713277844959,-500.0,0.00016993,2]
[322774826,1713277844972,-455.88824361,0.00016993,2]
[322774827,1713277844981,-500.0,0.00016993,2]
[322774828,1713277844991,-500.0,0.00016993,2]
[322774829,1713277845000,-1149.28,0.00016993,2]
[322774830,1713277845010,-500.0,0.00016993,2]
[322774831,1713277845020,-581.8,0.00016993,2]
[322774832,1713277845030,-500.0,0.00016993,2]
[322774833,1713277845039,-581.8,0.00016993,2]
[322774834,1713277845048,-394.37481038,0.00016993,2]
[322774835,1713277845057,-152.98959828,0.00016993,2]
[322774836,1713277845067,-176.95281317,0.00016993,2]
[322774837,1713277845076,-500.0,0.00016993,2]